[Event "Polish University-ch Women 2024"]
[Site "Lublin"]
[Date "2024.02.24"]
[Round "9.1"]
[White "Sliwicka, Alicja"]
[Black "Jarocka, Liwia"]
[Result "1/2-1/2"]
[ECO "B12"]
[WhiteElo "2309"]
[BlackElo "2199"]
[Annotator "TA"]
[PlyCount "39"]
[EventDate "2024.02.22"]
[EventType "swiss"]
[EventCountry "POL"]
[SourceTitle "playchess.com"]
[Source "ChessBase"]
[SourceQuality "1"]
[TimeControl "600+3"]

{[%evp 9,39,9,13,7,11,7,27,16,28,-250,7,-23,17,7,75,67,180,170,171,196,258,265,269,258,315,249,230,246,298,292,351,251]} 1. e4 {[%emt 0:00:01]} c6 {[%emt 0:00:01]} 2. d4 {[%emt 0:00:03]} d5 {[%emt 0:00:01]} 3. e5 {[%emt 0:00:01]} Bf5 {[%emt 0:00:01]} 4. c4 {[%emt 0:00:03]} e6 {[%emt 0:00:03]} 5. Nc3 {[%emt 0:00:01]} Bb4 {[%emt 0:00:01]} 6. Qb3 {[%emt 0:00:03]} Qa5 {[%emt 0:01:25]} 7. Bd2 {[%emt 0:00:11]} dxc4 {[%emt 0:00:07]} 8. Bxc4 {[%emt 0:00:09] White has an edge.} Ne7 {[%emt 0:00:07]} 9. Nge2 $2 {[%emt 0:00:07][%mdl 8192] [#]} (9. Nf3 $11) 9... O-O $2 {[%emt 0:00:18]} (9... b5 $19 10. a3 Bxc3 (10... bxc4 11. Qxb4 Qa6 12. Bg5 $11) 11. Bxc3 Qd8 (11... bxc4 $2 12. Qxb8+ Rxb8 13. Bxa5 $19) 12. Bxe6 Bxe6) 10. Ng3 {[%emt 0:00:14]} b5 {[%emt 0:00:42]} (10... c5 $5 11. a3 Nbc6 $11) 11. Be2 {[%emt 0:00:05] Black should prevent 0-0.} Na6 {[%emt 0:00:38]} (11... Rd8 $11) 12. O-O $16 {[%emt 0:00:13] Black must now prevent a4.} Bg6 {[%emt 0:00:10]} (12... Qd8 $14) 13. a4 $18 {[%emt 0:00:38][%cal Ra4b5]} Bxc3 {[%emt 0:00:53]} 14. bxc3 {[%emt 0:00:02][%cal Ra4b5]} Qb6 {[%emt 0:00:19]} (14... b4 $142 15. cxb4 Qb6) 15. axb5 {[%emt 0:00:09]} Nc7 {[%emt 0:00:03][%cal Rc6b5] Black is weak on the dark squares} 16. Qa3 {[%emt 0:00:33]} Rfe8 {[%emt 0:01:49]} 17. bxc6 {[%emt 0:00:06]} Nxc6 {[%emt 0:00:09]} 18. Bf3 {[%emt 0:00:26]} Bd3 {[%emt 0:01:10]} 19. Rfc1 {[%emt 0:00:06] [#] Threatens to win with c4.} Nb5 {[%emt 0:00:04]} 20. Qa6 {[%emt 0:00:42][%mdl 32768] Weighted Error Value: White=0.37/Black=0.51.  Loses game:     	White=1     	---        Missed win:     	---       	Black=1      Mistake:       	---       	Black=3      Inaccurate:     	White=1     	Black=1      OK:         	White=6     	Black=3      Best:        	White=1     	Black=1     . An unexpected result.} 1/2-1/2

[Event "Polish University-ch Women 2024"]
[Site "Lublin"]
[Date "2024.02.24"]
[Round "9.2"]
[White "Czarnecka, Lidia"]
[Black "Antolak, Julia"]
[Result "1-0"]
[ECO "B99"]
[WhiteElo "2034"]
[BlackElo "2309"]
[Annotator "TA"]
[PlyCount "77"]
[EventDate "2024.02.22"]
[EventType "swiss"]
[EventCountry "POL"]
[SourceTitle "playchess.com"]
[Source "ChessBase"]
[SourceQuality "1"]
[TimeControl "600+3"]

{[%evp 25,77,73,92,93,70,22,30,16,45,35,141,48,53,48,79,35,160,137,576,572,573,506,577,80,84,74,74,33,222,94,291,304,290,283,318,298,718,503,922,817,894,684,887,657,822,814,798,359,337,337,29990,29991,29994,29995]} 1. e4 {[%emt 0:00:02]} c5 {[%emt 0:00:01]} 2. Nf3 {[%emt 0:00:01]} d6 {[%emt 0:00:04]} 3. d4 {[%emt 0:00:02]} cxd4 {[%emt 0:00:01]} 4. Nxd4 {[%emt 0:00:18]} Nf6 {[%emt 0:00:02]} 5. Nc3 {[%emt 0:00:02]} a6 {[%emt 0:00:01]} 6. Bg5 {[%emt 0:00:05]} e6 {[%emt 0:00:01]} 7. f4 {[%emt 0:00:01]} Be7 {[%emt 0:00:01]} 8. Qf3 {[%emt 0:00:02]} Nbd7 {[%emt 0:00:06]} 9. O-O-O {[%emt 0:00:04]} Qc7 {[%emt 0:00:01]} 10. g4 {[%emt 0:00:08]} b5 {[%emt 0:00:01]} 11. a3 {[%emt 0:00:20]} Bb7 {[%emt 0:00:07]} 12. Bxf6 {[%emt 0:00:02]} Nxf6 {[%emt 0:00:05]} 13. g5 {[%emt 0:00:04]} Nd7 {[%emt 0:00:02][%cal Od6d5]} 14. h4 {[%emt 0:01:01]} O-O {[%emt 0:01:10][%cal Od6d5]} 15. h5 {[%emt 0:01:54]} ({White should try} 15. f5 $14) 15... Nc5 $11 {[%emt 0:00:09]} 16. Bg2 {[%emt 0:00:53] White has an edge.} Rac8 {[%emt 0:00:12]} 17. Kb1 {[%emt 0:00:56]} Rfe8 {[%emt 0:00:33] [#]} (17... Qb6 $14) 18. g6 {[%emt 0:00:34]} fxg6 $14 {[%emt 0:00:02]} 19. hxg6 {[%emt 0:00:02]} h6 {[%emt 0:00:00]} 20. f5 {[%emt 0:02:35] White is much more active.} Bf6 {[%emt 0:00:53]} ({Better is} 20... Rf8 $1 $14) 21. fxe6 $16 {[%emt 0:00:31][%cal Oh1h6]} Bxd4 $2 {[%emt 0:00:51][%mdl 8192]} (21... Rf8 $16 {is more resistant.} 22. Qh3 Bxd4 23. Rxd4 Qe7) 22. Qf7+ $18 {[%emt 0:00:15]} (22. Rxd4 Rxe6 23. Qf1 Rxg6 $17) 22... Kh8 {[%emt 0:00:00]} 23. Rxd4 {[%emt 0:00:20][%cal Oh1h6] Rxh6+! would kill now.} Nxe6 {[%emt 0:00:02][%cal Oe8e7,Bc5e6,Be6f4,Bf4g2][%mdl 32] [#] aiming for ...Re7!} 24. Qxc7 {[%emt 0:00:01]} (24. Rxd6 $1 $18 {[%cal Oh1h6] is the precise move to win. White threatens Rxh6+! and mate.} Qxf7 (24... Qxd6 25. Rxh6+ gxh6 26. Qh7#) 25. gxf7) 24... Rxc7 $16 {[%emt 0:00:00]} 25. Rxd6 $40 {[%emt 0:00:01][%mdl 128] White has strong attack.} Nf4 {[%emt 0:01:37]} 26. Bf3 {[%emt 0:00:01] Black must now prevent Rhd1.} Rce7 $2 {[%emt 0:00:09] [#]} (26... Rf8 $14) 27. Nd5 {[%emt 0:00:24]} (27. Bg4 $1 $18 {is more deadly. Hoping for Rf1.} Rf8 28. Rhd1) 27... Bxd5 $2 {[%emt 0:01:04]} (27... Re6 $16 {might work better.} 28. Rd7 Bc6 29. Nxf4 Bxd7 30. Nxe6 Bxe6) 28. exd5 $18 {[%emt 0:00:01]} Re3 {[%emt 0:00:08]} 29. Rf1 {[%emt 0:00:15]} a5 {[%emt 0:00:30][%cal Ba6a5,Ba5b4][%mdl 32]} 30. Bg4 {[%emt 0:00:09]} Ng2 {[%emt 0:00:37]} (30... R3e4 31. Bf5 Rd4) 31. Be6 {[%emt 0:00:07]} b4 {[%emt 0:00:16]} (31... Nh4 $142 32. Bd7 Rb8) 32. axb4 {[%emt 0:00:03]} axb4 {[%emt 0:00:01]} 33. Rb6 {[%emt 0:00:05][%cal Od5d6] d6! would now be deadly.} Re4 {[%emt 0:00:13]} 34. Rb7 {[%emt 0:00:07] White wants to mate with Rbf7.} Nf4 {[%emt 0:00:23]} 35. Bf7 {[%emt 0:00:03]} Rd8 {[%emt 0:00:12]} 36. Rb6 {[%emt 0:00:07]} (36. d6 $142) 36... Rd4 {[%emt 0:00:27]} 37. d6 {[%emt 0:00:05] Threatens to win with Re1.} h5 $2 {[%emt 0:00:11]} (37... Nh5 $18 38. Re1 Nf6) 38. Rb5 {[%emt 0:00:08]} Ra8 {[%emt 0:01:01]} 39. Rh1 {[%emt 0:00:06] Weighted Error Value: White=0.86/Black=0.81.  Loses game:     	---       	Black=3      Missed win:     	White=1     	---        Mistake:       	White=3     	Black=5      Inaccurate:     	White=2     	Black=1      OK:         	White=3     	Black=5      Best:        	White=3     	Black=1} 1-0

[Event "Polish University-ch Women 2024"]
[Site "Lublin"]
[Date "2024.02.24"]
[Round "9.3"]
[White "Kaczmarska, Joanna"]
[Black "Kubicka, Anna"]
[Result "0-1"]
[ECO "B15"]
[WhiteElo "1870"]
[BlackElo "2278"]
[Annotator "TA"]
[PlyCount "86"]
[EventDate "2024.02.22"]
[EventType "swiss"]
[EventCountry "POL"]
[SourceTitle "playchess.com"]
[Source "ChessBase"]
[SourceQuality "1"]
[TimeControl "600+3"]

{[%evp 21,86,12,26,25,24,0,39,28,49,6,12,0,0,4,52,-78,-79,-446,-162,-159,-161,-534,-544,-610,-614,-593,-568,-643,-625,-682,-656,-657,-656,-654,-642,-678,-675,-733,-711,-732,-706,-903,-900,-896,-865,-1163,-852,-1512,-887,-1338,-893,-856,-772,-1841,-1777,-29989,-29990,-29990,-29991,-29995,-29996,-29996,-29995,-29995,-29996,-29996,-29997]} 1. e4 {[%emt 0:00:01]} c6 {[%emt 0:00:02]} 2. d4 {[%emt 0:00:07]} d5 {[%emt 0:00:01]} 3. Nd2 {[%emt 0:00:22]} dxe4 {[%emt 0:00:02]} 4. Nxe4 {[%emt 0:00:02]} Nf6 {[%emt 0:00:06]} 5. Nxf6+ {[%emt 0:00:12]} exf6 {[%emt 0:00:01]} 6. c3 {[%emt 0:00:06]} Bd6 {[%emt 0:00:03]} 7. Bd3 {[%emt 0:00:02]} O-O {[%emt 0:00:03]} 8. Ne2 {[%emt 0:00:04][%cal Bg1e2,Be2g3,Bg3f5][%mdl 32]} Re8 {[%emt 0:00:01]} 9. O-O {[%emt 0:01:45]} Nd7 {[%emt 0:00:03][%cal Bb8d7,Bd7f8,Bf8g6][%mdl 32]} 10. Bf4 {[%emt 0:00:14]} Nf8 {[%emt 0:00:01]} 11. Bxd6 {[%emt 0:00:48]} Qxd6 {[%emt 0:00:03]} 12. Ng3 {[%emt 0:00:01]} Ng6 {[%emt 0:00:34]} 13. Nf5 {[%emt 0:01:55]} Qf4 {[%emt 0:00:40]} 14. g3 {[%emt 0:00:16] White is slightly better.} Qc7 {[%emt 0:00:18]} 15. Qg4 {[%emt 0:00:44]} c5 {[%emt 0:01:00]} 16. d5 {[%emt 0:02:27]} (16. dxc5 {simplifies} Qxc5 17. Qd4 Qc7 18. Ne3) 16... c4 {[%emt 0:00:02]} 17. Rfe1 {[%emt 0:01:01]} (17. Bxc4 $2 Bxf5 18. Qxf5 Qxc4 $19) 17... Bd7 {[%emt 0:02:19]} (17... Bxf5 $11 {feels stronger.} 18. Bxf5 Ne5) 18. Be4 {[%emt 0:00:37] [#]} (18. Qxc4 $2 {perishes.} Qxc4 $19) (18. Bc2 $1 $14 {keeps the upper hand.}) 18... Re5 $1 $17 {[%emt 0:01:01] Threatens to win with ...Qc8.} 19. f4 $2 {[%emt 0:00:08][%mdl 8192] White does not recover from this.} (19. Bc2 $17 {is more resistant.}) 19... Bxf5 $2 {[%emt 0:00:06]} (19... Qc5+ 20. Kf1 Rxe4 (20... Bxf5 $2 21. Bxf5 h5 22. Qh3 $17) 21. Nh6+ (21. Rxe4 $2 {is the wrong capture.} Qxd5 22. Qf3 Bc6 $19) 21... gxh6 22. Qxd7 Re7 23. Rxe7 Qxe7 24. Qxe7 Nxe7) 20. Bxf5 $19 {[%emt 0:00:02]} Rxd5 {[%emt 0:00:03]} 21. Re2 $2 {[%emt 0:00:04]} (21. Bxg6 {is a better chance.} hxg6 22. Re2) 21... Qc5+ {[%emt 0:00:26]} 22. Kh1 {[%emt 0:00:01]} Rxf5 {[%emt 0:00:07]} 23. Rae1 {[%emt 0:00:01]} Rf8 {[%emt 0:00:06]} 24. h4 {[%emt 0:00:01]} h5 {[%emt 0:00:08]} 25. Qh3 {[%emt 0:00:02]} Qc6+ {[%emt 0:00:16]} 26. Kh2 {[%emt 0:00:18]} Rd5 {[%emt 0:00:04]} 27. Qg2 {[%emt 0:00:00]} Qd6 {[%emt 0:00:12]} 28. Qe4 {[%emt 0:00:00]} b5 {[%emt 0:00:08]} 29. a4 {[%emt 0:00:00]} a6 {[%emt 0:00:01]} 30. axb5 {[%emt 0:00:04]} axb5 {[%emt 0:00:02]} 31. Qe3 {[%emt 0:00:04]} Rd3 {[%emt 0:00:03]} 32. Qf2 {[%emt 0:00:01]} Qd5 {[%emt 0:00:11]} 33. Rf1 {[%emt 0:00:03]} Rd8 {[%emt 0:00:08]} 34. Qb6 {[%emt 0:00:06]} Rd2 {[%emt 0:00:36]} 35. Rff2 {[%emt 0:00:01]} Rxe2 {[%emt 0:00:02]} 36. Rxe2 {[%emt 0:00:01]} Qd3 {[%emt 0:00:01]} 37. Rf2 {[%emt 0:00:06]} Ne7 {[%emt 0:00:06] [#] ...Nf5 would now be deadly.} 38. Qxb5 {[%emt 0:00:04]} Nf5 {[%emt 0:00:03] Black mates.} 39. Rg2 {[%emt 0:00:02]} Ne3 {[%emt 0:00:02]} 40. Rg1 {[%emt 0:00:03]} Qe2+ {[%emt 0:00:11]} 41. Kh3 {[%emt 0:00:04]} Rd2 {[%emt 0:00:07][%csl Gd2][%cal Re2h2]} 42. Qe8+ {[%emt 0:00:02]} Kh7 {[%emt 0:00:01][%csl Gd2][%cal Re2h2]} 43. Qe4+ {[%emt 0:00:03]} f5 {[%emt 0:00:04] Weighted Error Value: White=0.80/Black=0.32.  Loses game:     	White=1     	---        Mistake:       	White=2     	Black=2      Inaccurate:     	White=1     	Black=1      OK:         	White=2     	Black=6      Best:        	---       	Black=1      Strong:       	---       	Black=1} 0-1

[Event "Polish University-ch Women 2024"]
[Site "Lublin"]
[Date "2024.02.24"]
[Round "9.4"]
[White "Rykala, Monika"]
[Black "Kucharska, Honorata"]
[Result "1/2-1/2"]
[ECO "A46"]
[WhiteElo "1893"]
[BlackElo "2137"]
[Annotator "RC"]
[PlyCount "122"]
[EventDate "2024.02.22"]
[EventType "swiss"]
[EventCountry "POL"]
[SourceTitle "playchess.com"]
[Source "ChessBase"]
[SourceQuality "1"]
[TimeControl "600+3"]

1. d4 {[%emt 0:00:01]} Nf6 {[%emt 0:00:02]} 2. Nf3 {[%emt 0:00:02]} e6 {[%emt 0:00:03]} 3. Bf4 {[%emt 0:00:02]} c5 {[%emt 0:00:03]} 4. e3 {[%emt 0:00:03]} d6 {[%emt 0:00:21]} 5. c3 {[%emt 0:00:04]} Nbd7 {[%emt 0:00:10]} 6. Nbd2 {[%emt 0:00:05]} cxd4 {[%emt 0:00:26]} 7. exd4 {[%emt 0:00:03]} Be7 {[%emt 0:00:10]} 8. Be2 {[%emt 0:00:11]} O-O {[%emt 0:00:09]} 9. h3 {[%emt 0:00:10]} Re8 {[%emt 0:00:16]} 10. O-O {[%emt 0:00:02]} Bf8 {[%emt 0:00:02]} 11. Re1 {[%emt 0:01:53]} e5 {[%emt 0:00:53]} 12. dxe5 {[%emt 0:00:03]} dxe5 {[%emt 0:00:01]} 13. Bg5 {[%emt 0:00:09]} Qc7 {[%emt 0:00:22]} 14. Bb5 {[%emt 0:00:39]} a6 {[%emt 0:01:17]} 15. Bxf6 {[%emt 0:00:42]} axb5 {[%emt 0:00:16]} 16. Bh4 {[%emt 0:00:06]} b6 {[%emt 0:00:22]} 17. Bg3 {[%emt 0:00:25]} Bb7 {[%emt 0:00:11]} 18. Qe2 {[%emt 0:01:58]} Qc6 {[%emt 0:00:46]} 19. Qe4 {[%emt 0:00:34]} Qxe4 {[%emt 0:00:06]} 20. Nxe4 {[%emt 0:00:02]} f5 {[%emt 0:00:02]} 21. Ned2 {[%emt 0:00:05]} f4 {[%emt 0:00:18]} 22. Bh2 {[%emt 0:00:03]} e4 {[%emt 0:00:10]} 23. Nd4 {[%emt 0:00:09]} Nc5 {[%emt 0:00:51]} 24. Nxb5 {[%emt 0:02:01]} Rad8 {[%emt 0:00:09]} 25. Nb3 {[%emt 0:00:17]} Nd3 {[%emt 0:00:11]} 26. Re2 {[%emt 0:00:15]} e3 {[%emt 0:01:34]} 27. fxe3 {[%emt 0:00:51]} f3 {[%emt 0:00:03]} 28. Rd2 {[%emt 0:00:18]} f2+ {[%emt 0:00:47]} 29. Rxf2 {[%emt 0:00:01]} Nxf2 {[%emt 0:00:04]} 30. Kxf2 {[%emt 0:00:00]} Re6 {[%emt 0:00:11]} 31. N5d4 {[%emt 0:00:10]} Rf6+ {[%emt 0:00:05]} 32. Kg1 {[%emt 0:00:03]} Rg6 {[%emt 0:00:03]} 33. g3 {[%emt 0:00:08]} Bd6 {[%emt 0:00:08]} 34. g4 {[%emt 0:00:02]} Bxh2+ {[%emt 0:00:06]} 35. Kxh2 {[%emt 0:00:01]} Rf6 {[%emt 0:00:02]} 36. Kg3 {[%emt 0:00:06]} Rdf8 {[%emt 0:00:06]} 37. Rd1 {[%emt 0:00:03]} g6 {[%emt 0:00:09]} 38. Nd2 {[%emt 0:00:03]} Rf2 {[%emt 0:00:06]} 39. Nc4 {[%emt 0:00:02]} Rg2+ {[%emt 0:00:04]} 40. Kh4 {[%emt 0:00:01]} h6 {[%emt 0:00:04]} 41. Nd6 {[%emt 0:00:05]} Bd5 {[%emt 0:00:29]} 42. c4 {[%emt 0:00:00]} Bf7 {[%emt 0:00:02]} 43. Nxf7 {[%emt 0:00:05]} Rxf7 {[%emt 0:00:01]} 44. Ne6 {[%emt 0:00:03]} Re7 {[%emt 0:00:02]} 45. Nf4 {[%emt 0:00:02]} g5+ {[%emt 0:00:02]} 46. Kh5 {[%emt 0:00:01]} gxf4 {[%emt 0:00:01]} 47. exf4 {[%emt 0:00:01]} Kg7 {[%emt 0:00:03]} 48. f5 {[%emt 0:00:01]} Rxb2 {[%emt 0:00:38]} 49. Rd6 {[%emt 0:00:02]} Rf7 {[%emt 0:00:00]} 50. h4 {[%emt 0:00:01]} Rb4 {[%emt 0:00:00]} 51. Rg6+ {[%emt 0:00:02]} Kf8 {[%emt 0:00:00]} 52. Rc6 {[%emt 0:00:01]} Kg7 {[%emt 0:00:00]} 53. Rg6+ {[%emt 0:00:01]} Kf8 {[%emt 0:00:00]} 54. Rxh6 {[%emt 0:00:02]} Rxc4 {[%emt 0:00:00]} 55. Rxb6 {[%emt 0:00:01]} Rh7+ {[%emt 0:00:00]} 56. Kg6 {[%emt 0:00:02]} Rg7+ {[%emt 0:00:00]} 57. Kf6 {[%emt 0:00:00]} Rf7+ {[%emt 0:00:00]} 58. Kg5 {[%emt 0:00:01]} Rg7+ {[%emt 0:00:00]} 59. Kf6 {[%emt 0:00:00]} Rf7+ {[%emt 0:00:01]} 60. Kg5 {[%emt 0:00:01]} Rg7+ {[%emt 0:00:02]} 61. Kf6 {[%emt 0:00:01]} Rf7+ {[%emt 0:00:02]} 1/2-1/2

[Event "Polish University-ch Women 2024"]
[Site "Lublin"]
[Date "2024.02.24"]
[Round "9.5"]
[White "Wikar, Martyna"]
[Black "Shaban, Aliaksandra"]
[Result "1-0"]
[ECO "B03"]
[WhiteElo "2214"]
[BlackElo "1708"]
[Annotator "RC"]
[PlyCount "80"]
[EventDate "2024.02.22"]
[EventType "swiss"]
[EventCountry "POL"]
[SourceTitle "playchess.com"]
[Source "ChessBase"]
[SourceQuality "1"]
[TimeControl "600+3"]

1. e4 {[%emt 0:00:01]} Nf6 {[%emt 0:00:02]} 2. e5 {[%emt 0:00:02]} Nd5 {[%emt 0:00:01]} 3. d4 {[%emt 0:00:04]} d6 {[%emt 0:00:01]} 4. c4 {[%emt 0:00:02]} Nb6 {[%emt 0:00:02]} 5. exd6 {[%emt 0:00:01]} cxd6 {[%emt 0:00:01]} 6. Nc3 {[%emt 0:00:05]} g6 {[%emt 0:00:01]} 7. Be3 {[%emt 0:00:10]} Bg7 {[%emt 0:00:02]} 8. Rc1 {[%emt 0:00:07]} O-O {[%emt 0:00:02]} 9. b3 {[%emt 0:00:04]} Nc6 {[%emt 0:00:02]} 10. Nge2 {[%emt 0:00:04]} Bf5 {[%emt 0:00:38]} 11. Ng3 {[%emt 0:00:08]} Bd7 {[%emt 0:00:02]} 12. h4 {[%emt 0:00:03]} h5 {[%emt 0:00:11]} 13. Bd3 {[%emt 0:00:43]} f5 {[%emt 0:01:26]} 14. d5 {[%emt 0:00:20]} Nb4 {[%emt 0:00:35]} 15. Bg5 {[%emt 0:00:15]} Qe8 {[%emt 0:01:24]} 16. O-O {[%emt 0:00:11]} e5 {[%emt 0:00:11]} 17. dxe6 {[%emt 0:00:06]} Bxe6 {[%emt 0:00:05]} 18. Bb1 {[%emt 0:00:20]} d5 {[%emt 0:00:35]} 19. Re1 {[%emt 0:00:43]} Qf7 {[%emt 0:00:26]} 20. a3 {[%emt 0:00:16]} Nc6 {[%emt 0:00:37]} 21. Rxe6 {[%emt 0:00:43]} Qxe6 {[%emt 0:01:07]} 22. cxd5 {[%emt 0:00:02]} Nxd5 {[%emt 0:00:41]} 23. Qxd5 {[%emt 0:00:33]} Qxd5 {[%emt 0:00:08]} 24. Nxd5 {[%emt 0:00:02]} Bb2 {[%emt 0:00:48]} 25. Rd1 {[%emt 0:00:20]} Bxa3 {[%emt 0:00:12]} 26. Nf6+ {[%emt 0:00:22]} Kg7 {[%emt 0:00:13]} 27. Nd5 {[%emt 0:01:01]} Rac8 {[%emt 0:00:17]} 28. Ne2 {[%emt 0:00:09]} Rf7 {[%emt 0:00:32]} 29. Nef4 {[%emt 0:00:47]} Re8 {[%emt 0:00:04]} 30. Bd3 {[%emt 0:00:04]} a6 {[%emt 0:00:12]} 31. b4 {[%emt 0:00:29]} Nxb4 {[%emt 0:00:27]} 32. Nxb4 {[%emt 0:00:02]} Bxb4 {[%emt 0:00:03]} 33. Bc4 {[%emt 0:00:01]} Rfe7 {[%emt 0:00:25]} 34. Bxe7 {[%emt 0:00:06]} Rxe7 {[%emt 0:00:01]} 35. Rd8 {[%emt 0:00:12]} Re4 {[%emt 0:00:04]} 36. Rg8+ {[%emt 0:00:32]} Kf6 {[%emt 0:00:06]} 37. Rxg6+ {[%emt 0:00:18]} Ke5 {[%emt 0:00:04]} 38. Nd3+ {[%emt 0:00:33]} Kd4 {[%emt 0:00:01]} 39. Nxb4 {[%emt 0:00:04]} Kxc4 {[%emt 0:00:02]} 40. Nc2 {[%emt 0:00:07]} Kd3 {[%emt 0:00:12]} 1-0

[Event "Polish University-ch Women 2024"]
[Site "Lublin"]
[Date "2024.02.24"]
[Round "9.6"]
[White "Michalska, Aleksandra"]
[Black "Harazinska, Magdalena"]
[Result "0-1"]
[ECO "B23"]
[WhiteElo "1812"]
[BlackElo "1950"]
[Annotator "NA RC"]
[PlyCount "158"]
[EventDate "2024.02.22"]
[EventType "swiss"]
[EventCountry "POL"]
[SourceTitle "playchess.com"]
[Source "ChessBase"]
[SourceQuality "1"]
[TimeControl "600+3"]

1. e4 {[%emt 0:00:01]} c5 {[%emt 0:00:01]} 2. Nc3 {[%emt 0:00:01]} a6 {[%emt 0:00:01]} 3. a4 {[%emt 0:00:01]} e6 {[%emt 0:00:02]} 4. f4 {[%emt 0:00:01]} d5 {[%emt 0:00:03]} 5. d3 {[%emt 0:00:02]} Nc6 {[%emt 0:00:12]} 6. Nf3 {[%emt 0:00:02]} Be7 {[%emt 0:00:07]} 7. g3 {[%emt 0:00:05]} d4 {[%emt 0:00:06]} 8. Ne2 {[%emt 0:00:02]} Nf6 {[%emt 0:00:02]} 9. Bg2 {[%emt 0:00:07]} O-O {[%emt 0:00:02]} 10. O-O {[%emt 0:00:07]} Qc7 {[%emt 0:00:19]} 11. Bd2 {[%emt 0:00:09]} b6 {[%emt 0:00:07]} 12. Qe1 {[%emt 0:00:38]} Bb7 {[%emt 0:00:05]} 13. h3 {[%emt 0:00:15]} Nd7 {[%emt 0:01:13]} 14. b3 {[%emt 0:00:30]} b5 {[%emt 0:00:53]} 15. Qf2 {[%emt 0:00:44]} Rfd8 {[%emt 0:00:59]} 16. g4 {[%emt 0:00:35]} bxa4 {[%emt 0:01:13]} 17. Rxa4 {[%emt 0:00:05]} Nb6 {[%emt 0:00:05]} 18. Raa1 {[%emt 0:00:02]} a5 {[%emt 0:00:01]} 19. f5 {[%emt 0:00:28]} e5 {[%emt 0:00:24]} 20. g5 {[%emt 0:00:05]} f6 {[%emt 0:00:07]} 21. h4 {[%emt 0:00:06]} a4 {[%emt 0:00:01]} 22. h5 {[%emt 0:00:39]} axb3 {[%emt 0:00:03]} 23. cxb3 {[%emt 0:00:02]} Ba6 {[%emt 0:00:41]} 24. Nc1 {[%emt 0:01:02]} Nb4 {[%emt 0:00:09]} 25. Qe2 {[%emt 0:00:58]} Bb5 {[%emt 0:00:22]} 26. Rb1 {[%emt 0:00:20]} Nd7 {[%emt 0:00:24]} 27. g6 {[%emt 0:00:11]} h6 {[%emt 0:00:06]} 28. Nh2 {[%emt 0:00:03]} Na2 {[%emt 0:00:22]} 29. Nxa2 {[%emt 0:00:46]} Rxa2 {[%emt 0:00:03]} 30. Rf3 {[%emt 0:00:14]} Rda8 {[%emt 0:00:16]} 31. Qd1 {[%emt 0:00:02]} Qa7 {[%emt 0:00:13]} 32. Ng4 {[%emt 0:00:38]} Ra1 {[%emt 0:00:14]} 33. Rc1 {[%emt 0:00:04]} Rxc1 {[%emt 0:00:04]} 34. Bxc1 {[%emt 0:00:05]} Qa1 {[%emt 0:00:07]} 35. Rf1 {[%emt 0:00:04]} Qb1 {[%emt 0:00:06]} 36. Nf2 {[%emt 0:00:53]} Ra1 {[%emt 0:00:02]} 37. Bf3 {[%emt 0:00:22]} Nb8 {[%emt 0:02:39]} 38. Be2 {[%emt 0:00:18]} Nc6 {[%emt 0:00:00]} 39. Qd2 {[%emt 0:00:19]} Ra2 {[%emt 0:00:00]} 40. Qd1 {[%emt 0:00:06]} Nb4 {[%emt 0:00:00]} 41. Bd2 {[%emt 0:00:40]} Qxd1 {[%emt 0:00:00]} 42. Rxd1 {[%emt 0:00:00]} Nc6 {[%emt 0:00:00]} 43. Kf1 {[%emt 0:00:01]} Kf8 {[%emt 0:00:00]} 44. Bc1 {[%emt 0:00:06]} Ke8 {[%emt 0:00:00]} 45. Ng4 {[%emt 0:00:01]} Bf8 {[%emt 0:00:00]} 46. Nf2 {[%emt 0:00:05]} Kd7 {[%emt 0:00:00]} 47. Ng4 {[%emt 0:00:00]} Kc7 {[%emt 0:00:00]} 48. Nf2 {[%emt 0:00:11]} Na5 {[%emt 0:00:00]} 49. Bd2 {[%emt 0:00:07]} Nxb3 {[%emt 0:00:00]} 50. Be1 {[%emt 0:00:00]} Ra1 {[%emt 0:00:00]} 51. Rxa1 {[%emt 0:00:03]} Nxa1 {[%emt 0:00:00]} 52. Ba5+ {[%emt 0:00:02]} Kc6 {[%emt 0:00:00]} 53. Bd1 {[%emt 0:00:02]} c4 {[%emt 0:00:00]} 54. Ke1 {[%emt 0:00:03]} Nb3 {[%emt 0:00:10]} 55. dxc4 {[%emt 0:00:03]} Bxc4 {[%emt 0:00:05]} 56. Bxb3 {[%emt 0:00:02]} Bxb3 {[%emt 0:00:01]} 57. Ke2 {[%emt 0:00:01]} Kb5 {[%emt 0:00:03]} 58. Bd2 {[%emt 0:00:03]} Bc4+ {[%emt 0:00:05]} 59. Kd1 {[%emt 0:00:03]} Ka4 {[%emt 0:00:04]} 60. Kc2 {[%emt 0:00:02]} Bb3+ {[%emt 0:00:08]} 61. Kd3 {[%emt 0:00:02]} Kb5 {[%emt 0:00:36]} 62. Ke2 {[%emt 0:00:02]} Kc4 {[%emt 0:00:00]} 63. Ng4 {[%emt 0:00:04]} d3+ {[%emt 0:00:00]} 64. Ke1 {[%emt 0:00:04]} Kd4 {[%emt 0:00:00]} 65. Nf2 {[%emt 0:00:01]} Ba4 {[%emt 0:00:00]} 66. Bc1 {[%emt 0:00:06]} Bc6 {[%emt 0:00:00]} 67. Bb2+ {[%emt 0:00:01]} Ke3 {[%emt 0:00:00]} 68. Bc1+ {[%emt 0:00:00]} Kd4 {[%emt 0:00:00]} 69. Bb2+ {[%emt 0:00:00]} Kc4 {[%emt 0:00:00]} 70. Bc1 {[%emt 0:00:03]} Bb4+ {[%emt 0:00:06]} 71. Bd2 {[%emt 0:00:01]} Bf8 {[%emt 0:00:01]} 72. Bc1 {[%emt 0:00:02]} Kd4 {[%emt 0:00:03]} 73. Bb2+ {[%emt 0:00:01]} Ke3 {[%emt 0:00:01]} 74. Bc1+ {[%emt 0:00:00]} Kf3 {[%emt 0:00:03]} 75. Nxd3 {[%emt 0:00:08]} Bxe4 {[%emt 0:00:02]} 76. Nxe5+ {[%emt 0:00:17]} fxe5 {[%emt 0:00:02]} 77. Bb2 {[%emt 0:00:02]} Kf4 {[%emt 0:00:03]} 78. f6 {[%emt 0:00:01]} gxf6 {[%emt 0:00:01]} 79. Kf2 {[%emt 0:00:01]} Bg7 {[%emt 0:00:04]} 0-1